bitfinex/quotes_SOLUSD_20250522
["timestamp","ask_amount","ask_price","bid_price","bid_amount"]
[1747919181868,30.33237116,177.56,177.55,33.76]
[1747919182195,6.2293,177.55,177.53,41.98]
[1747919182406,30.47453273,177.54,177.53,41.98]
[1747919183300,30.33237116,177.54,177.53,41.98]
[1747919184201,35.96490467,177.54,177.53,41.98]
[1747919184580,35.96490467,177.54,177.44,236.62]
[1747919184581,78.20890601,177.54,177.44,210.62]
[1747919184775,30.33237116,177.52,177.45,75.74]
[1747919185679,30.33237116,177.53,177.45,75.74]
[1747919185879,30.33237116,177.53,177.46,33.76]
[1747919186171,19.71608832,177.52,177.46,33.76]
[1747919186804,50.04845948,177.52,177.45,41.98]
[1747919187102,50.04845948,177.52,177.46,33.76]
[1747919187274,19.71608832,177.52,177.46,33.76]
[1747919188409,14.08292023,177.52,177.46,33.76]
[1747919189510,44.41529139,177.52,177.45,41.98]
[1747919189803,14.08292023,177.52,177.47,33.76]
[1747919190390,19.71608832,177.52,177.47,33.76]
[1747919190885,5.63316809,177.52,177.47,59.76]
[1747919191606,5.63316809,177.52,177.48,18.64964886]
[1747919192189,5.63316809,177.52,177.47,59.76]
[1747919192402,14.08244237,177.53,177.47,59.76]
[1747919192600,14.08244237,177.53,177.48,41.98]
[1747919192904,14.08244237,177.53,177.48,75.74]
[1747919194107,44.41481353,177.53,177.48,75.74]
[1747919194315,44.41481353,177.53,177.49,33.76]
[1747919194903,50.04766431,177.53,177.49,33.76]
[1747919195512,19.71529315,177.53,177.49,33.76]
[1747919196011,30.33237116,177.51,177.48,41.98]
[1747919196196,30.47453273,177.51,177.48,41.98]
[1747919196393,30.47453273,177.51,177.48,75.74]
[1747919196804,19.71529315,177.53,177.48,75.74]
[1747919196805,30.33237116,177.53,177.48,75.74]
[1747919197007,0.14216157,177.54,177.48,75.74]
[1747919197211,30.47453273,177.54,177.48,75.74]
[1747919197715,30.33237116,177.53,177.48,75.74]
[1747919198306,30.47453273,177.51,177.48,75.74]
[1747919198501,30.33237116,177.5,177.48,75.74]
[1747919198992,5.63412023,177.49,177.48,75.74]
[1747919200621,36.10865296,177.49,177.48,41.98]
[1747919202120,36.10865296,177.49,177.46,33.78]
[1747919202319,30.47453273,177.47,177.46,33.78]
[1747919202687,0.14216157,177.46,177.44,210.62]
[1747919202917,5.63570784,177.44,177.43,42.0]
[1747919203116,36.11024057,177.44,177.43,42.0]
[1747919204518,36.11024057,177.44,177.33,216.8418]
[1747919204519,0.14216157,177.43,177.39,33.78]
[1747919204693,30.33237116,177.41,177.39,33.78]
[1747919204899,5.63697857,177.4,177.38,41.66]
[1747919205102,5.63697857,177.4,177.39,33.78]
[1747919207023,30.33237116,177.4,177.39,33.78]
[1747919207537,30.33237116,177.4,177.38,41.66]
[1747919207697,30.47453273,177.39,177.38,75.44]
[1747919208097,30.47453273,177.39,177.38,41.66]
[1747919208517,0.14216157,177.37,177.33,210.74]
[1747919208704,30.47453273,177.34,177.33,244.52]
[1747919209107,36.11341848,177.34,177.33,244.52]
[1747919209513,36.11341848,177.34,177.33,210.74]
[1747919209709,36.11341848,177.34,177.33,33.78]
[1747919209913,51.72703287,177.34,177.22,212.3114]
[1747919210130,30.33237116,177.3,177.23,41.66]
[1747919210320,30.33237116,177.29,177.23,75.44]
[1747919210618,30.33237116,177.29,177.23,41.66]
[1747919210619,30.33237116,177.25,177.23,41.66]
[1747919210798,30.33237116,177.25,177.24,33.78]
[1747919210994,30.47453273,177.25,177.24,33.78]
[1747919211235,36.11628167,177.25,177.24,33.78]
[1747919211445,36.11628167,177.25,177.23,41.66]
[1747919211651,30.47453273,177.24,177.23,41.66]
[1747919211932,35.9741201,177.25,177.23,41.66]
[1747919212100,5.64174894,177.25,177.23,41.66]
[1747919212931,35.9741201,177.25,177.23,41.66]
[1747919213310,5.64174894,177.25,177.23,75.46]
[1747919214807,0.14216157,177.24,177.23,75.46]
[1747919215022,0.14216157,177.24,177.23,41.66]
[1747919215223,5.64174894,177.25,177.23,41.66]
[1747919216540,5.64111242,177.27,177.23,41.66]
[1747919217204,30.33237116,177.29,177.23,41.66]
[1747919217205,5.64079422,177.28,177.23,41.66]
[1747919217749,50.07515093,177.28,177.23,41.66]
[1747919218838,19.74277977,177.28,177.23,41.66]
[1747919219932,50.07515093,177.28,177.23,41.66]
[1747919220533,19.74277977,177.28,177.24,33.82]
[1747919220739,50.07515093,177.28,177.24,33.82]
[1747919220943,19.74277977,177.28,177.24,33.82]
[1747919221136,30.33237116,177.27,177.24,33.82]
[1747919221311,5.64143066,177.26,177.24,33.82]
[1747919223560,5.64111242,177.27,177.24,33.82]
[1747919225463,44.43233999,177.31,177.24,33.82]
[1747919225464,14.09996883,177.31,177.24,33.82]
[1747919225836,44.43233999,177.31,177.24,33.82]
[1747919228258,78.27137895,177.31,177.22,210.8]
[1747919228461,30.33237116,177.27,177.22,210.8]
[1747919228632,30.33237116,177.27,177.23,33.82]
[1747919228836,30.33237116,177.28,177.23,33.82]
[1747919229060,30.47453273,177.3,177.23,33.82]
[1747919229262,0.14216157,177.3,177.23,33.82]
[1747919229438,30.47453273,177.3,177.23,33.82]
[1747919229777,30.33237116,177.28,177.23,33.82]
[1747919230081,30.33237116,177.29,177.23,33.82]
[1747919230431,19.74277977,177.28,177.23,33.82]
[1747919231363,5.64079422,177.28,177.23,33.82]
[1747919231865,50.07515093,177.28,177.23,33.82]
[1747919232236,19.74277977,177.28,177.23,33.82]
[1747919233171,5.64079422,177.28,177.23,33.82]
[1747919234439,50.07515093,177.28,177.22,43.44]
[1747919234640,30.33237116,177.27,177.24,33.82]
[1747919234971,30.33237116,177.26,177.22,43.44]
[1747919235262,19.88494134,177.28,177.23,33.82]
[1747919235452,30.47453273,177.24,177.22,43.44]
[1747919235665,0.14216157,177.22,177.19,211.02]
[1747919235843,30.33237116,177.2,177.18,33.82]
[1747919236163,30.33237116,177.2,177.05,43.44]
[1747919236164,0.14216157,177.17,177.05,43.44]
[1747919236344,30.33237116,177.13,177.06,33.82]
[1747919236549,35.97826095,177.12,177.06,33.82]
[1747919236738,35.97826095,177.12,177.07,33.82]
[1747919237051,5.64588979,177.12,177.07,33.82]
[1747919237363,5.64429643,177.17,177.11,26.0]
[1747919237570,19.7509092,177.21,177.12,77.26]
[1747919237867,19.7509092,177.21,177.13,18.64964886]
[1747919238177,5.6430224,177.21,177.13,18.64964886]
[1747919238397,5.6430224,177.21,177.16,26.0]
[1747919238583,19.74750805,177.24,177.17,33.82]
[1747919239180,5.64206725,177.24,177.2,26.0]
[1747919239364,5.64206725,177.24,177.21,77.26]
[1747919240179,0.14216157,177.26,177.21,77.26]
[1747919240180,19.74612129,177.25,177.21,43.44]
[1747919240488,19.74612129,177.25,177.22,33.82]
[1747919240489,50.07849245,177.25,177.22,33.82]
[1747919241091,19.74612129,177.25,177.22,33.82]
[1747919242455,5.64174894,177.25,177.22,33.82]
[1747919242652,1.5465,177.29,177.22,33.82]
[1747919242653,0.14216157,177.29,177.22,33.82]
[1747919242858,5.64015792,177.3,177.22,59.82]
[1747919243667,50.07292389,177.3,177.22,59.82]
[1747919244677,0.14216157,177.29,177.22,59.82]
[1747919244975,30.47453273,177.29,177.23,77.26]
[1747919245680,30.33237116,177.28,177.24,33.82]
[1747919246105,19.74055273,177.3,177.24,33.82]
[1747919246256,14.10039481,177.3,177.24,33.82]
[1747919246460,30.47453273,177.29,177.24,33.82]
[1747919246764,0.14216157,177.27,177.25,43.44]
[1747919246963,0.14216157,177.27,177.26,33.82]
[1747919247180,30.47453273,177.27,177.25,33.82]
[1747919247491,0.14216157,177.28,177.25,33.82]
[1747919247973,30.47453273,177.28,177.25,33.82]
[1747919248155,0.14216157,177.26,177.25,33.82]
[1747919248356,84.74549338,177.26,177.13,6.4928]
[1747919248584,30.33237116,177.22,177.14,77.26]
[1747919248889,0.14216157,177.21,177.15,33.82]
[1747919249076,30.33237116,177.19,177.16,33.82]
[1747919250395,0.14216157,177.19,177.16,33.82]
[1747919250686,19.7505784,177.21,177.16,33.82]
[1747919251262,0.14216157,177.2,177.16,33.82]
[1747919251684,30.33237116,177.19,177.17,77.86]
[1747919252003,30.47453273,177.18,177.17,77.86]
[1747919252166,30.47453273,177.18,177.17,44.04]
[1747919252361,0.14216157,177.17,177.15,33.82]
[1747919252579,30.33237116,177.16,177.15,33.82]
[1747919252978,0.14216157,177.16,177.15,33.82]
[1747919253718,30.47453273,177.16,177.15,33.82]
[1747919254013,30.33237116,177.16,177.15,33.82]
[1747919254191,30.47453273,177.16,177.12,44.04]
[1747919254398,5.64493367,177.15,177.13,33.82]
[1747919255711,35.97730483,177.15,177.13,33.82]
[1747919255892,30.33237116,177.14,177.11,211.08]
[1747919256084,19.75726785,177.15,177.11,244.9]
[1747919256281,5.64493367,177.15,177.11,244.9]
[1747919256587,14.11035,177.18,177.11,244.9]
[1747919256788,5.6430224,177.21,177.15,18.64964886]
[1747919257085,19.7505784,177.21,177.14,26.0]
[1747919257291,19.7505784,177.21,177.16,77.9]
[1747919257490,19.7505784,177.21,177.17,33.84]
[1747919257893,50.08294956,177.21,177.17,44.06]
[1747919258090,30.33237116,177.18,177.11,211.08]
[1747919258306,30.33237116,177.18,177.12,77.9]
[1747919258510,19.75503752,177.17,177.12,77.9]
[1747919258885,50.08740868,177.17,177.13,33.84]
[1747919259495,19.75503752,177.17,177.13,33.84]
[1747919260113,19.75503752,177.17,177.14,33.84]
[1747919261214,50.08740868,177.17,177.14,33.84]
[1747919261528,19.75503752,177.17,177.14,33.84]
[1747919261826,50.08740868,177.17,177.14,33.84]
[1747919261991,19.75503752,177.17,177.14,33.84]
[1747919262323,30.47453273,177.15,177.11,211.08]
[1747919262525,5.64557104,177.13,177.12,33.84]
[1747919262819,5.64461503,177.16,177.12,33.84]
[1747919262992,5.64365934,177.19,177.13,18.64964886]
[1747919263798,5.64365934,177.19,177.12,66.4162]
[1747919264714,14.10914837,177.19,177.12,66.4162]
[1747919264901,5.6430224,177.21,177.12,32.5762]
[1747919265104,5.6430224,177.21,177.13,77.9]
[1747919265715,5.6430224,177.21,177.17,26.0]
[1747919265899,5.6430224,177.21,177.18,33.84]
[1747919266620,14.10569732,177.24,177.18,33.84]
[1747919266791,5.64143066,177.26,177.18,33.84]
[1747919268127,14.10314949,177.27,177.18,33.84]
[1747919268535,44.43552065,177.27,177.18,33.84]
[1747919268896,30.33237116,177.26,177.18,33.84]
[1747919269216,30.33237116,177.25,177.19,77.9]
[1747919269393,14.10314949,177.27,177.19,77.9]
[1747919270007,19.74426191,177.27,177.19,77.9]
[1747919271531,30.33237116,177.23,177.2,77.9]
[1747919271702,0.14216157,177.26,177.2,77.9]
[1747919271703,30.33237116,177.22,177.2,77.9]
[1747919272101,30.33237116,177.23,177.2,77.9]
[1747919272338,5.64270398,177.22,177.2,77.9]
[1747919272836,30.33237116,177.21,177.2,44.06]
[1747919273498,35.97507514,177.22,177.2,44.06]
[1747919274009,5.64270398,177.22,177.2,44.06]
[1747919274498,5.6423856,177.23,177.2,44.06]
[1747919275317,35.97475676,177.23,177.2,44.06]
[1747919276205,5.6423856,177.23,177.2,44.06]
[1747919276604,14.10588486,177.24,177.2,44.06]
[1747919276916,5.64143066,177.26,177.2,44.06]
[1747919277117,19.74500732,177.26,177.2,44.06]
[1747919278306,30.47453273,177.25,177.2,44.06]
[1747919278509,5.6430224,177.21,177.19,77.9]
[1747919280529,30.33237116,177.2,177.19,77.9]
[1747919280696,35.97571201,177.2,177.19,77.9]
[1747919280898,35.97571201,177.2,177.19,44.06]
[1747919281395,36.11787358,177.2,177.19,44.06]
[1747919281599,5.64334085,177.2,177.19,44.06]
[1747919282613,5.64270398,177.22,177.19,44.06]
[1747919282822,14.1067023,177.23,177.2,33.84]
[1747919283003,5.64174894,177.25,177.2,33.84]
[1747919283412,19.74612129,177.25,177.2,33.84]
[1747919285835,30.47453273,177.24,177.2,33.84]
[1747919286040,19.74612129,177.25,177.2,33.84]
[1747919287530,30.47453273,177.24,177.2,33.84]
[1747919287735,30.33237116,177.21,177.19,44.06]
[1747919287910,27.5881,177.27,177.19,77.9]
[1747919287911,35.97571201,177.2,177.19,77.9]
[1747919288111,5.64334085,177.2,177.19,77.9]
[1747919290015,5.6430224,177.21,177.19,77.9]
[1747919290218,30.47453273,177.2,177.19,44.06]
[1747919290424,0.14216157,177.19,177.16,33.84]
[1747919290620,30.33237116,177.18,177.16,33.84]
[1747919291032,30.47453273,177.17,177.14,77.3]
[1747919291426,30.33237116,177.16,177.14,77.3]
[1747919292244,5.64493367,177.15,177.14,77.3]
[1747919292621,36.1194664,177.15,177.14,43.46]
[1747919293238,5.78709524,177.15,177.14,43.46]
[1747919293415,36.1194664,177.15,177.14,43.46]
[1747919294244,5.64493367,177.15,177.14,43.46]
[1747919295055,14.10810219,177.21,177.14,43.46]
[1747919295239,5.6423856,177.23,177.17,26.0]
[1747919295440,5.6423856,177.23,177.18,33.84]
[1747919295953,4.0098462,177.28,177.22,26.0]
[1747919296120,5.64117977,177.27,177.23,77.3]
[1747919296316,9.65067914,177.28,177.23,77.3]
[1747919298136,5.64083294,177.28,177.23,77.3]
[1747919300247,14.10090576,177.3,177.23,77.3]
[1747919302054,14.10090576,177.3,177.24,77.26]
[1747919302220,19.74106368,177.3,177.24,77.26]
[1747919302626,19.74106368,177.3,177.25,77.26]
[1747919303139,19.74106368,177.3,177.22,26.0]
[1747919303346,19.74106368,177.3,177.26,43.44]
[1747919303556,19.74106368,177.3,177.27,77.26]
[1747919304349,19.7372131,177.33,177.27,77.26]
[1747919305128,5.63920374,177.33,177.28,26.0]
[1747919306035,5.6385678,177.35,177.28,26.0]
[1747919306655,14.0964195,177.35,177.28,26.0]
[1747919307356,30.33237116,177.31,177.25,211.06]
[1747919307537,30.33237116,177.3,177.26,77.26]
[1747919307742,30.33237116,177.3,177.27,77.26]
[1747919308166,30.33237116,177.3,177.28,33.82]
[1747919308467,0.14216157,177.28,177.23,77.26]
[1747919308642,36.45357116,177.29,177.21,33.82]
[1747919308643,35.97443841,177.24,177.21,33.82]
[1747919308846,30.33237116,177.22,177.19,43.44]
[1747919309046,30.33237116,177.22,177.21,33.82]
[1747919309261,30.33237116,177.23,177.21,33.82]
[1747919310042,5.64270398,177.22,177.21,33.82]
[1747919310243,5.64270398,177.22,177.13,212.6453]
[1747919310244,50.08183509,177.22,177.13,212.6453]
[1747919310550,50.08183509,177.22,177.14,103.26]
[1747919310551,30.33237116,177.21,177.14,103.26]
[1747919310949,50.08183509,177.22,177.14,103.26]
[1747919311335,19.74946393,177.22,177.14,103.26]
[1747919311671,50.08183509,177.22,177.14,26.0]
[1747919311840,50.08183509,177.22,177.15,77.26]
[1747919312565,30.33237116,177.21,177.15,77.26]
[1747919313230,30.33237116,177.21,177.16,33.82]
[1747919313635,30.33237116,177.2,177.13,211.02]
[1747919313835,30.33237116,177.17,177.14,76.5]
[1747919314034,5.64493367,177.15,177.14,76.5]
[1747919314267,35.97730483,177.15,177.13,244.84]
[1747919314469,35.97730483,177.15,177.13,33.82]
[1747919314858,30.33237116,177.14,177.08,42.68]
[1747919315167,30.33237116,177.13,177.09,33.82]
[1747919315465,30.33237116,177.14,177.08,42.68]
[1747919315763,30.33237116,177.14,177.1,33.82]
[1747919316067,5.64588979,177.12,177.1,33.82]
[1747919316243,5.64588979,177.12,177.02,211.06]
[1747919316244,30.47453273,177.11,177.02,211.06]
[1747919316443,30.33237116,177.1,177.05,42.68]
[1747919317363,30.33237116,177.1,177.06,33.84]
[1747919318241,5.64684623,177.09,177.06,33.84]
[1747919318573,5.64649903,177.11,177.06,33.84]
[1747919319357,5.645917,177.12,177.06,33.84]
[1747919319558,5.64525234,177.14,177.06,39.4876864]
[1747919320571,6.3296,177.19,177.07,18.64964886]
[1747919320572,5.64429643,177.17,177.07,18.64964886]
[1747919320743,5.64429643,177.17,177.1,26.0]
[1747919320946,5.64429643,177.17,177.11,33.84]
[1747919321161,5.64429643,177.17,177.12,42.7]
[1747919322670,19.75503752,177.17,177.12,42.7]
[1747919322876,50.08740868,177.17,177.12,42.7]
[1747919323053,30.33237116,177.15,177.13,33.84]
[1747919323565,30.47453273,177.16,177.13,33.84]
[1747919323871,19.75503752,177.17,177.13,33.84]
[1747919324557,30.47453273,177.16,177.13,33.84]
[1747919325849,19.75503752,177.17,177.13,33.84]
[1747919326578,5.64429643,177.17,177.13,33.84]
[1747919328142,14.10874534,177.2,177.13,33.84]
[1747919328754,5.64270398,177.22,177.13,39.48555011]
[1747919328951,5.64270398,177.22,177.14,18.64964886]
[1747919330575,30.33237116,177.21,177.15,76.54]
[1747919331151,30.47453273,177.19,177.16,42.7]
[1747919331351,30.47453273,177.18,177.17,33.84]
[1747919331564,30.47453273,177.18,177.07,18.64964886]
[1747919331565,0.14216157,177.17,177.07,18.64964886]
[1747919331870,0.14216157,177.17,177.09,26.0]
[1747919332583,19.75615262,177.16,177.08,76.54]
[1747919332790,19.75615262,177.16,177.09,26.0]
[1747919334083,5.64461503,177.16,177.11,26.0]
[1747919334285,5.64461503,177.16,177.12,33.84]
[1747919335651,14.1095846,177.19,177.12,33.84]
[1747919337893,5.6430224,177.21,177.12,33.84]
[1747919338101,19.7505784,177.21,177.12,33.84]
[1747919338793,19.7505784,177.21,177.13,18.64964886]
[1747919339903,14.107556,177.21,177.14,76.54]
[1747919340693,0.14216157,177.2,177.14,42.7]
[1747919340879,30.47453273,177.2,177.14,42.7]
[1747919341088,30.33237116,177.2,177.14,42.7]
[1747919341281,14.107556,177.21,177.15,33.84]
[1747919341781,19.7505784,177.21,177.15,33.84]
[1747919341982,5.6430224,177.21,177.15,33.84]
[1747919342170,5.6430224,177.21,177.18,26.0]
[1747919343209,14.10564733,177.24,177.18,26.0]
[1747919343999,14.10564733,177.24,177.19,75.84]
[1747919344000,44.43801849,177.24,177.19,75.84]
[1747919344173,14.10564733,177.24,177.19,75.84]
[1747919345108,19.74771458,177.24,177.19,75.84]
[1747919346185,5.64206725,177.24,177.19,75.84]
[1747919346499,19.74723538,177.24,177.19,75.84]
[1747919347049,5.64206725,177.24,177.19,75.84]
[1747919347224,0.14216157,177.24,177.15,26.0]
[1747919347506,30.33237116,177.24,177.2,42.0]
[1747919347706,30.47453273,177.25,177.21,33.84]
[1747919347905,5.64143066,177.26,177.21,33.84]
[1747919348091,5.64079422,177.28,177.21,59.84]
[1747919348978,5.64079422,177.28,177.22,18.64964886]
[1747919349304,19.73943939,177.31,177.25,26.0]
[1747919349479,5.63983982,177.31,177.26,33.84]
[1747919349683,5.63983982,177.31,177.27,42.0]
[1747919350475,5.63960388,177.32,177.27,42.0]
[1747919351336,14.09829444,177.33,177.27,42.0]
[1747919351824,0.14216157,177.32,177.25,26.0]
[1747919352229,0.14216157,177.32,177.26,75.84]
[1747919352522,44.4306656,177.33,177.26,75.84]
[1747919352523,14.09829444,177.33,177.26,75.84]
[1747919353500,19.73749818,177.33,177.26,75.84]
[1747919354132,5.63920374,177.33,177.29,26.0]
[1747919354509,5.63920374,177.33,177.3,75.82]
[1747919354707,5.63920374,177.33,177.31,75.8]
[1747919355027,19.7372131,177.33,177.31,75.8]
[1747919355444,14.09800936,177.33,177.31,75.8]
[1747919355616,14.24017093,177.33,177.32,75.8]
[1747919356145,14.24017093,177.33,177.24,211.1]
[1747919356146,0.14216157,177.32,177.24,211.1]
[1747919356330,30.33237116,177.26,177.24,211.1]
[1747919356503,0.14216157,177.28,177.25,33.82]
[1747919356699,0.14216157,177.26,177.25,33.82]
[1747919357198,7.8986,177.29,177.25,33.82]
[1747919357398,0.14216157,177.28,177.25,33.82]
[1747919357735,5.64111242,177.27,177.25,33.82]
[1747919359626,50.07333316,177.3,177.25,33.82]
[1747919359832,19.740962,177.3,177.25,33.82]
[1747919361820,30.47453273,177.29,177.25,33.82]
[1747919362229,0.14216157,177.29,177.25,33.82]
[1747919363542,30.47453273,177.29,177.25,33.82]
[1747919363759,0.14216157,177.27,177.22,41.98]
[1747919363916,30.47453273,177.27,177.23,33.82]
[1747919364114,5.64079422,177.28,177.23,26.0]
[1747919364347,5.64015792,177.3,177.24,33.82]
[1747919365937,5.63983982,177.31,177.24,33.82]
[1747919366133,0.14216157,177.3,177.22,41.98]
[1747919366338,0.14216157,177.3,177.25,26.0]
[1747919366817,0.14216157,177.3,177.23,59.82]
[1747919367850,0.14216157,177.3,177.24,33.82]
[1747919368038,5.64047605,177.29,177.24,33.82]
[1747919368817,5.61631158,177.29,177.24,33.82]
[1747919370222,5.63983982,177.31,177.24,39.46183727]
[1747919370755,5.63983982,177.31,177.27,26.0]
[1747919371051,5.63920374,177.33,177.28,33.82]
[1747919371225,5.63920374,177.33,177.29,41.98]
[1747919371545,22.09045353,177.37,177.29,41.98]
[1747919371546,5.63824988,177.36,177.29,41.98]
[1747919372139,5.63888575,177.34,177.29,41.98]
[1747919372849,5.63888575,177.34,177.29,47.62047141]
[1747919373147,5.63888575,177.34,177.29,41.98]
[1747919374263,19.73314539,177.37,177.29,41.98]
[1747919374764,0.14216157,177.36,177.29,41.98]
[1747919376224,5.6385678,177.35,177.29,41.98]
[1747919376467,5.6385678,177.35,177.32,26.0]
[1747919376763,5.6385678,177.35,177.33,33.8]
[1747919378340,19.7320483,177.38,177.33,33.8]
[1747919379353,19.7320483,177.38,177.27,294.0]
[1747919379354,0.14216157,177.35,177.27,294.0]
[1747919379526,30.29613999,177.33,177.28,75.58]
[1747919379847,0.14216157,177.34,177.28,75.58]
[1747919380021,30.29613999,177.33,177.28,75.58]
[1747919380218,0.14216157,177.33,177.28,75.58]
[1747919380445,5.63952176,177.32,177.28,75.58]
[1747919381350,0.14216157,177.31,177.27,211.0]
[1747919381559,0.14216157,177.27,177.25,33.8]
[1747919381847,0.14216157,177.27,177.26,33.8]
[1747919382231,1.5293,177.31,177.26,33.8]
[1747919382232,0.14216157,177.3,177.26,33.8]
[1747919382432,0.14216157,177.28,177.26,33.8]
[1747919382834,30.29613999,177.27,177.26,33.8]
[1747919383555,30.43830156,177.28,177.26,33.8]
[1747919383854,5.64111242,177.27,177.26,33.8]
[1747919385960,5.78263762,177.29,177.26,33.8]
[1747919392140,5.64047605,177.29,177.26,33.8]
[1747919393064,14.10113097,177.3,177.26,33.8]
[1747919393065,19.74128889,177.3,177.26,33.8]
[1747919393434,0.14216157,177.29,177.21,26.0]
[1747919393635,0.14216157,177.29,177.22,75.6]
[1747919394968,19.74128889,177.3,177.22,75.6]
[1747919398342,5.64015792,177.3,177.22,75.6]
[1747919398545,5.64015792,177.3,177.25,26.0]
[1747919398854,5.64015792,177.3,177.26,33.82]
[1747919399956,19.88048775,177.32,177.26,33.82]
[1747919400461,19.24031656,177.31,177.26,33.82]
[1747919400670,0.14216157,177.29,177.27,75.6]
[1747919400874,0.14216157,177.29,177.28,75.6]
[1747919401250,0.14216157,177.31,177.28,75.6]
[1747919401467,19.73832618,177.32,177.28,75.6]
[1747919402948,5.6385678,177.35,177.28,75.6]
[1747919403249,5.6385678,177.35,177.28,107.24074033]
[1747919403661,19.73207971,177.38,177.31,26.0]
[1747919403969,5.63761416,177.38,177.32,33.82]
[1747919405862,5.63729635,177.39,177.32,33.82]
[1747919406065,19.73053723,177.39,177.32,33.82]
[1747919406264,19.73053723,177.39,177.23,1.5621]
[1747919406265,0.14216157,177.38,177.3,26.0]
[1747919406463,0.14216157,177.38,177.31,74.72]
[1747919406464,19.38247813,177.38,177.31,74.72]
[1747919407160,0.14216157,177.38,177.31,74.72]
[1747919407552,19.73053723,177.39,177.31,74.72]
[1747919407943,14.09324088,177.39,177.31,80.35976455]
[1747919408275,5.63697857,177.4,177.31,80.35976455]
[1747919408774,5.63697857,177.4,177.35,26.0]
[1747919408984,5.63697857,177.4,177.36,33.8]
[1747919409471,19.72942501,177.4,177.36,33.8]
[1747919410183,5.63666084,177.41,177.36,33.8]
[1747919410489,19.72831294,177.41,177.36,33.8]
[1747919411079,19.72831294,177.41,177.33,26.0]
[1747919411292,5.63666084,177.41,177.37,33.8]
[1747919411983,0.14216157,177.38,177.27,18.64964886]
[1747919412152,19.73276201,177.37,177.28,40.92]
[1747919412354,19.73276201,177.37,177.29,59.8]
[1747919413060,5.637932,177.37,177.32,26.0]
[1747919414178,19.8726988,177.39,177.32,26.0]
[1747919414555,19.8726988,177.39,177.32,25.97583552]
[1747919415060,39.11301536,177.39,177.29,33.8]
[1747919415264,39.11301536,177.39,177.28,40.92]
[1747919415466,39.11301536,177.39,177.29,33.8]
[1747919416176,19.24031656,177.38,177.29,33.8]
[1747919416478,19.73276201,177.37,177.3,26.0]
[1747919417277,14.09483001,177.37,177.3,26.0]
[1747919418068,0.14216157,177.36,177.28,40.92]
[1747919418259,0.14216157,177.36,177.31,26.0]
[1747919419094,5.63761416,177.38,177.31,26.0]
[1747919419392,38.97196612,177.38,177.31,26.0]
[1747919419566,19.73164956,177.38,177.31,26.0]
[1747919422287,5.63761416,177.38,177.31,26.0]
[1747919422894,5.63761416,177.38,177.31,31.63979366]
[1747919423572,6.203,177.42,177.36,26.0]
[1747919423879,5.77818704,177.43,177.37,74.72]
[1747919424780,19.86825072,177.43,177.37,74.72]
[1747919425675,19.72608915,177.43,177.37,74.72]
[1747919426407,5.63602547,177.43,177.37,80.21348473]
[1747919427590,19.72306688,177.46,177.37,85.85132736]
[1747919427792,19.72306688,177.46,177.37,80.21348473]
[1747919427999,19.72306688,177.46,177.37,74.72]
[1747919428511,0.14216157,177.45,177.37,74.72]
[1747919428668,0.14216157,177.45,177.36,26.0]
[1747919428669,0.14216157,177.42,177.36,26.0]
[1747919428872,0.14216157,177.42,177.37,74.72]
[1747919429096,0.14216157,177.43,177.37,74.72]
[1747919429490,5.63602547,177.43,177.37,74.72]
[1747919430071,5.63602547,177.43,177.38,26.0]
[1747919431792,14.08990303,177.44,177.38,26.0]
[1747919433299,33.33021959,177.44,177.37,74.72]
[1747919433499,0.14216157,177.43,177.37,74.72]